fUST/lending_fUST_20240802
["ID","MTS","AMOUNT","RATE_DAILY","PERIOD"]
[333863587,1722579057410,-150.112233,0.000142,2]
[333863588,1722579057420,-1004.55160415,0.000142,2]
[333863589,1722579057429,-600.0,0.0001423,2]
[333863590,1722579057438,-1000.0,0.00014234,2]
[333863591,1722579057448,-1000.0,0.00014245,2]
[333863592,1722579057458,-500.0,0.00014246,2]
[333863593,1722579057468,-500.0,0.00014246,2]
[333863594,1722579057477,-610.09361851,0.00014246,2]
[333863595,1722579057486,-508.45274544,0.00014246,2]
[333863596,1722579057495,-500.0,0.00014246,2]
[333863597,1722579057505,-500.0,0.00014246,2]
[333863598,1722579057514,-500.0,0.00014246,2]
[333863599,1722579057524,-500.0,0.00014246,2]
[333863600,1722579057534,-974.01,0.00014246,2]
[333863601,1722579057546,-500.0,0.00014246,2]
[333863602,1722579057556,-500.0,0.00014246,2]
[333863603,1722579057565,-500.0,0.00014246,2]
[333863604,1722579057574,-500.0,0.00014246,2]
[333863605,1722579057584,-500.0,0.00014246,2]
[333863606,1722579057593,-501.13903607,0.00014246,2]
[333863607,1722579057602,-500.0,0.00014246,2]
[333863608,1722579057612,-508.52192442,0.00014246,2]
[333863609,1722579057623,-500.0,0.00014246,2]
[333863610,1722579057632,-500.0,0.00014246,2]
[333863611,1722579057642,-500.0,0.00014246,2]
[333863612,1722579057651,-500.0,0.00014246,2]
[333863613,1722579057660,-513.30762217,0.00014246,2]
[333863614,1722579057669,-500.0,0.00014246,2]
[333863615,1722579057679,-641.78,0.00014246,2]
[333863616,1722579057688,-500.0,0.00014246,2]
[333863617,1722579057697,-500.0,0.00014246,2]
[333863618,1722579057706,-250.87938558,0.00014246,2]
[333863619,1722579057716,-500.0,0.00014246,2]
[333863620,1722579057725,-723.5,0.00014246,2]
[333863621,1722579057735,-500.0,0.00014246,2]
[333863622,1722579057745,-500.0,0.00014246,2]
[333863623,1722579057755,-500.0,0.00014246,2]
[333863624,1722579057764,-1075.74,0.00014246,2]
[333863625,1722579057773,-500.0,0.00014246,2]
[333863626,1722579057782,-500.0,0.00014246,2]
[333863627,1722579057792,-947.16,0.00014246,2]
[333863628,1722579057801,-500.0,0.00014246,2]
[333863629,1722579057810,-500.0,0.00014246,2]
[333863630,1722579057819,-772.41,0.00014246,2]
[333863631,1722579057828,-500.0,0.00014246,2]
[333863632,1722579057837,-500.0,0.00014246,2]
[333863633,1722579057847,-500.0,0.00014246,2]
[333863634,1722579057857,-500.0,0.00014246,2]
[333863635,1722579057867,-500.0,0.00014246,2]
[333863636,1722579057876,-500.0,0.00014246,2]
[333863637,1722579057886,-500.0,0.00014246,2]
[333863638,1722579057895,-500.0,0.00014246,2]
[333863639,1722579057905,-902.37,0.00014246,2]
[333863640,1722579057914,-310.46451421,0.00014246,2]
[333863641,1722579057987,-500.0,0.00014246,2]
[333863642,1722579058004,-500.0,0.00014246,2]
[333863643,1722579058014,-500.0,0.00014246,2]
[333863644,1722579058024,-500.0,0.00014246,2]
[333863645,1722579058034,-500.0,0.00014246,2]
[333863646,1722579058045,-500.0,0.00014246,2]
[333863647,1722579058056,-500.0,0.00014246,2]
[333863648,1722579058065,-735.93,0.00014246,2]
[333863649,1722579058076,-500.0,0.00014246,2]
[333863650,1722579058087,-500.0,0.00014246,2]
[333863651,1722579058098,-500.0,0.00014246,2]
[333863652,1722579058108,-765.76,0.00014246,2]
[333863653,1722579058119,-500.0,0.00014246,2]
[333863654,1722579058130,-566.91,0.00014246,2]
[333863655,1722579058141,-500.0,0.00014246,2]
[333863656,1722579058152,-592.23,0.00014246,2]
[333863657,1722579058162,-500.0,0.00014246,2]
[333863658,1722579058172,-503.1,0.00014246,2]
[333863659,1722579058181,-500.0,0.00014246,2]
[333863660,1722579058190,-2064.69,0.00014246,2]
[333863661,1722579058200,-500.0,0.00014246,2]
[333863662,1722579058210,-500.0,0.00014246,2]
[333863663,1722579058220,-502.63257513,0.00014246,2]
[333863664,1722579058230,-978.62,0.00014246,2]
[333863665,1722579058239,-500.0,0.00014246,2]
[333863666,1722579058248,-509.07095924,0.00014246,2]
[333863667,1722579058258,-500.0,0.00014246,2]
[333863668,1722579058268,-500.0,0.00014246,2]
[333863669,1722579058277,-500.0,0.00014246,2]
[333863670,1722579058287,-2504.91,0.00014246,2]
[333863671,1722579058297,-500.0,0.00014246,2]
[333863672,1722579058307,-1083.36,0.00014246,2]
[333863673,1722579058317,-500.0,0.00014246,2]
[333863674,1722579058327,-658.96,0.00014246,2]
[333863675,1722579058337,-500.0,0.00014246,2]
[333863676,1722579058347,-500.0,0.00014246,2]
[333863677,1722579058357,-500.0,0.00014246,2]
[333863678,1722579058367,-500.0,0.00014246,2]
[333863679,1722579058377,-500.0,0.00014246,2]
[333863680,1722579058389,-520.27825207,0.00014246,2]
[333863681,1722579058401,-500.0,0.00014246,2]
[333863682,1722579058411,-341.03816866,0.00014246,2]
[333863683,1722579058422,-500.0,0.00014246,2]
[333863684,1722579058432,-737.68,0.00014246,2]
[333863685,1722579058442,-804.68,0.00014246,2]
[333863686,1722579058452,-500.0,0.00014246,2]
[333863687,1722579058461,-500.0,0.00014246,2]
[333863688,1722579058470,-500.0,0.00014246,2]
[333863689,1722579058480,-500.0,0.00014246,2]
[333863690,1722579058490,-823.41,0.00014246,2]
[333863691,1722579058500,-1365.74,0.00014246,2]
[333863692,1722579058510,-500.0,0.00014246,2]
[333863693,1722579058520,-689.75,0.00014246,2]
[333863694,1722579058531,-500.0,0.00014246,2]
[333863695,1722579058542,-500.0,0.00014246,2]
[333863696,1722579058557,-500.0,0.00014246,2]
[333863697,1722579058567,-987.68,0.00014246,2]
[333863698,1722579058576,-500.0,0.00014246,2]
[333863699,1722579058586,-502.96586553,0.00014246,2]
[333863700,1722579058598,-500.0,0.00014246,2]
[333863701,1722579058608,-500.0,0.00014246,2]
[333863702,1722579058617,-500.0,0.00014246,2]
[333863703,1722579058628,-314.67438466,0.00014246,2]
[333863704,1722579058639,-500.0,0.00014246,2]
[333863705,1722579058656,-550.17,0.00014246,2]
[333863706,1722579058665,-500.0,0.00014246,2]
[333863707,1722579058675,-1094.99,0.00014246,2]
[333863708,1722579058685,-518.89,0.00014246,2]
[333863709,1722579058702,-1285.67,0.00014246,2]
[333863710,1722579058713,-500.0,0.00014246,2]
[333863711,1722579058723,-596.37,0.00014246,2]
[333863712,1722579058740,-1495.23,0.00014246,2]
[333863713,1722579058757,-500.0,0.00014246,2]
[333863714,1722579058767,-1907.27,0.00014246,2]
[333863715,1722579058778,-2296.25,0.00014246,2]
[333863716,1722579058789,-500.0,0.00014246,2]
[333863717,1722579058800,-423.79088182,0.00014246,2]
[333863718,1722579058811,-500.0,0.00014246,2]
[333863719,1722579058821,-2383.19,0.00014246,2]
[333863720,1722579058832,-500.0,0.00014246,2]
[333863721,1722579058842,-2109.37,0.00014246,2]
[333863722,1722579058852,-1239.38,0.00014246,2]
[333863723,1722579058863,-518.90003934,0.00014246,2]
[333863724,1722579058873,-500.0,0.00014246,2]
[333863725,1722579058885,-500.0,0.00014246,2]
[333863726,1722579058896,-500.0,0.00014246,2]
[333863727,1722579058906,-500.0,0.00014246,2]
[333863728,1722579058918,-334.08798466,0.00014246,2]
[333863729,1722579058928,-500.0,0.00014246,2]
[333863730,1722579058940,-500.0,0.00014246,2]
[333863731,1722579058952,-500.0,0.00014246,2]
[333863732,1722579058963,-500.0,0.00014246,2]
[333863733,1722579058973,-500.0,0.00014246,2]
[333863734,1722579058985,-500.0,0.00014246,2]
[333863735,1722579058996,-557.42,0.00014246,2]
[333863736,1722579059007,-8928.74,0.00014246,2]
[333863737,1722579059017,-500.0,0.00014246,2]
[333863738,1722579059027,-500.0,0.00014246,2]
[333863739,1722579059038,-500.0,0.00014246,2]
[333863740,1722579059048,-500.0,0.00014246,2]
[333863741,1722579059058,-3974.3,0.00014246,2]
[333863742,1722579059068,-677.33,0.00014246,2]
[333863743,1722579059079,-1546.82,0.00014246,2]
[333863744,1722579059089,-500.0,0.00014246,2]
[333863745,1722579059099,-500.0,0.00014246,2]
[333863746,1722579059109,-500.0,0.00014246,2]
[333863747,1722579059119,-500.0,0.00014246,2]
[333863748,1722579059130,-500.0,0.00014246,2]
[333863749,1722579059140,-1043.82,0.00014246,2]
[333863750,1722579059149,-500.0,0.00014246,2]
[333863751,1722579059159,-500.0,0.00014246,2]
[333863752,1722579059169,-545.96,0.00014246,2]
[333863753,1722579059179,-500.0,0.00014246,2]
[333863754,1722579059188,-1153.47,0.00014246,2]
[333863755,1722579059198,-500.0,0.00014246,2]
[333863756,1722579059207,-500.0,0.00014246,2]
[333863757,1722579059217,-500.0,0.00014246,2]
[333863758,1722579059227,-749.82,0.00014246,2]
[333863759,1722579059237,-5500.2,0.00014246,2]
[333863760,1722579059246,-500.0,0.00014246,2]
[333863761,1722579059256,-560.79,0.00014246,2]
[333863762,1722579059266,-1545.14,0.00014246,2]
[333863763,1722579059275,-760.37,0.00014246,2]
[333863764,1722579059284,-500.0,0.00014246,2]
[333863765,1722579059293,-500.0,0.00014246,2]
[333863766,1722579059304,-500.0,0.00014246,2]
[333863767,1722579059313,-500.0,0.00014246,2]
[333863768,1722579059323,-500.0,0.00014246,2]
[333863769,1722579059333,-500.0,0.00014246,2]
[333863770,1722579059342,-6346.79,0.00014246,2]
[333863771,1722579059353,-919.48,0.00014246,2]
[333863772,1722579059363,-512.50283936,0.00014246,2]
[333863773,1722579059374,-703.72,0.00014246,2]
[333863774,1722579059383,-516.88,0.00014246,2]
[333863775,1722579059394,-500.0,0.00014246,2]
[333863776,1722579059404,-500.0,0.00014246,2]
[333863777,1722579059413,-2490.95,0.00014246,2]
[333863778,1722579059425,-795.32,0.00014246,2]
[333863779,1722579059435,-500.0,0.00014246,2]
[333863780,1722579059447,-500.0,0.00014246,2]
[333863781,1722579059458,-505.1340817,0.00014246,2]
[333863782,1722579059467,-500.0,0.00014246,2]
[333863783,1722579059477,-500.0,0.00014246,2]
[333863784,1722579059487,-500.0,0.00014246,2]
[333863785,1722579059497,-500.0,0.00014246,2]
[333863786,1722579059506,-500.0,0.00014246,2]
[333863787,1722579059517,-500.0,0.00014246,2]
[333863788,1722579059528,-500.0,0.00014246,2]
[333863789,1722579059643,-1047.04,0.00014246,2]
[333863790,1722579059654,-500.0,0.00014246,2]
[333863791,1722579059665,-500.0,0.00014246,2]
[333863792,1722579059675,-500.0,0.00014246,2]
[333863793,1722579059685,-688.64,0.00014246,2]
[333863794,1722579059696,-500.0,0.00014246,2]
[333863795,1722579059706,-4027.37,0.00014246,2]
[333863796,1722579059717,-500.0,0.00014246,2]
[333863797,1722579059727,-769.86,0.00014246,2]
[333863798,1722579059739,-500.0,0.00014246,2]
[333863799,1722579059750,-500.0,0.00014246,2]
[333863800,1722579059761,-500.0,0.00014246,2]
[333863801,1722579059770,-500.0,0.00014246,2]
[333863802,1722579059781,-677.81,0.00014246,2]
[333863803,1722579059790,-1034.52,0.00014246,2]
[333863804,1722579059800,-500.0,0.00014246,2]
[333863805,1722579059812,-746.99,0.00014246,2]
[333863806,1722579059824,-500.0,0.00014246,2]
[333863807,1722579059833,-817.67,0.00014246,2]
[333863808,1722579059843,-1121.06,0.00014246,2]
[333863809,1722579059854,-500.0,0.00014246,2]
[333863810,1722579059866,-507.55873567,0.00014246,2]
[333863811,1722579059876,-746.97,0.00014246,2]
[333863812,1722579059886,-1338.14,0.00014246,2]
[333863813,1722579059895,-1468.19,0.00014246,2]
[333863814,1722579059904,-500.0,0.00014246,2]
[333863815,1722579059914,-623.209996,0.00014247,2]
[333863816,1722579059925,-750.0,0.00014247,2]
[333863817,1722579059936,-164.54958123,0.00014273,2]
[333863818,1722579059947,-200.0,0.00014273,2]
[333863819,1722579059959,-200.0,0.00014273,2]
[333863820,1722579059969,-150.112233,0.000143,2]
[333863821,1722579059979,-150.112233,0.000143,2]
[333863822,1722579059989,-942.06003,0.00014375,2]
[333863823,1722579059998,-1000.0,0.00014377,2]
[333863824,1722579060008,-150.112233,0.000144,2]
[333863825,1722579060018,-620.0000239,0.00014491,2]
[333863826,1722579060028,-150.112233,0.000145,2]
[333863827,1722579060038,-500.0,0.0001452,2]
[333863828,1722579060048,-500.0,0.0001452,2]
[333863829,1722579060058,-500.0,0.0001452,2]
[333863830,1722579060067,-500.0,0.0001452,2]
[333863831,1722579060077,-262.97793259,0.0001452,2]
[333863832,1722579060087,-974.01,0.0001452,2]
[333863833,1722579060097,-500.0,0.0001452,2]
[333863834,1722579060108,-519.57009649,0.0001452,2]
[333863835,1722579060118,-500.0,0.0001452,2]
[333863836,1722579060128,-500.0,0.0001452,2]
[333863837,1722579060138,-500.0,0.0001452,2]
[333863838,1722579060147,-500.0,0.0001452,2]
[333863839,1722579060157,-500.0,0.0001452,2]
[333863840,1722579060167,-259.85423766,0.0001452,2]
[333863841,1722579060176,-641.78,0.0001452,2]
[333863842,1722579060186,-500.0,0.0001452,2]
[333863843,1722579060196,-500.0,0.0001452,2]
[333863844,1722579060205,-723.5,0.0001452,2]
[333863845,1722579060214,-500.0,0.0001452,2]
[333863846,1722579060224,-500.0,0.0001452,2]
[333863847,1722579060235,-500.0,0.0001452,2]
[333863848,1722579060244,-1075.74,0.0001452,2]
[333863849,1722579060254,-296.51,0.0001452,2]
[333863850,1722579060264,-500.0,0.0001452,2]
[333863851,1722579060274,-947.16,0.0001452,2]
[333863852,1722579060284,-297.68794005,0.0001452,2]
[333863853,1722579060294,-522.32179472,0.0001452,2]
[333863854,1722579060306,-772.41,0.0001452,2]
[333863855,1722579060317,-500.0,0.0001452,2]
[333863856,1722579060327,-497.76567255,0.0001452,2]
[333863857,1722579060336,-500.0,0.0001452,2]
[333863858,1722579060346,-500.0,0.0001452,2]
[333863859,1722579060355,-500.0,0.0001452,2]
[333863860,1722579060365,-500.0,0.0001452,2]
[333863861,1722579060375,-503.60052176,0.0001452,2]
[333863862,1722579060385,-500.0,0.0001452,2]
[333863863,1722579060395,-902.37,0.0001452,2]
[333863864,1722579060403,-500.0,0.0001452,2]
[333863865,1722579060413,-500.0,0.0001452,2]
[333863866,1722579060423,-500.0,0.0001452,2]
[333863867,1722579060432,-735.93,0.0001452,2]
[333863868,1722579060441,-506.02214432,0.0001452,2]
[333863869,1722579060450,-500.0,0.0001452,2]
[333863870,1722579060460,-500.0,0.0001452,2]
[333863871,1722579060469,-765.76,0.0001452,2]
[333863872,1722579060479,-500.0,0.0001452,2]
[333863873,1722579060487,-566.91,0.0001452,2]
[333863874,1722579060496,-500.0,0.0001452,2]
[333863875,1722579060506,-592.23,0.0001452,2]
[333863876,1722579060516,-500.0,0.0001452,2]
[333863877,1722579060525,-503.1,0.0001452,2]
[333863878,1722579060535,-500.0,0.0001452,2]
[333863879,1722579060545,-2064.69,0.0001452,2]
[333863880,1722579060557,-500.0,0.0001452,2]
[333863881,1722579060566,-500.0,0.0001452,2]
[333863882,1722579060576,-978.62,0.0001452,2]
[333863883,1722579060586,-500.0,0.0001452,2]
[333863884,1722579060596,-505.39075701,0.0001452,2]
[333863885,1722579060605,-500.0,0.0001452,2]
[333863886,1722579060614,-2504.91,0.0001452,2]
[333863887,1722579060624,-500.0,0.0001452,2]
[333863888,1722579060635,-1083.36,0.0001452,2]
[333863889,1722579060645,-214.97501538,0.0001452,2]
[333863890,1722579060654,-658.96,0.0001452,2]
[333863891,1722579060663,-500.0,0.0001452,2]
[333863892,1722579060674,-257.42332999,0.0001452,2]
[333863893,1722579060684,-500.0,0.0001452,2]
[333863894,1722579060694,-500.0,0.0001452,2]
[333863895,1722579060704,-500.0,0.0001452,2]
[333863896,1722579060714,-511.40830848,0.0001452,2]
[333863897,1722579060724,-737.68,0.0001452,2]
[333863898,1722579060734,-804.68,0.0001452,2]
[333863899,1722579060743,-500.0,0.0001452,2]
[333863900,1722579060753,-500.0,0.0001452,2]
[333863901,1722579060762,-500.0,0.0001452,2]
[333863902,1722579060772,-823.41,0.0001452,2]
[333863903,1722579060782,-1365.74,0.0001452,2]
[333863904,1722579060792,-500.0,0.0001452,2]
[333863905,1722579060803,-689.75,0.0001452,2]
[333863906,1722579060813,-987.68,0.0001452,2]
[333863907,1722579060823,-500.0,0.0001452,2]
[333863908,1722579060834,-500.0,0.0001452,2]
[333863909,1722579060846,-500.0,0.0001452,2]
[333863910,1722579060856,-550.17,0.0001452,2]
[333863911,1722579060867,-1094.99,0.0001452,2]
[333863912,1722579060885,-518.89,0.0001452,2]
[333863913,1722579060897,-1285.67,0.0001452,2]
[333863914,1722579060907,-500.0,0.0001452,2]
[333863915,1722579060916,-596.37,0.0001452,2]
[333863916,1722579060927,-1495.23,0.0001452,2]
[333863917,1722579060937,-500.0,0.0001452,2]
[333863918,1722579060949,-1907.27,0.0001452,2]
[333863919,1722579060959,-2296.25,0.0001452,2]
[333863920,1722579060970,-2383.19,0.0001452,2]
[333863921,1722579060981,-500.0,0.0001452,2]
[333863922,1722579060991,-2109.37,0.0001452,2]
[333863923,1722579061001,-1239.38,0.0001452,2]
[333863924,1722579061107,-500.0,0.0001452,2]
[333863925,1722579061124,-516.44564668,0.0001452,2]
[333863926,1722579061134,-500.0,0.0001452,2]
[333863927,1722579061145,-500.0,0.0001452,2]
[333863928,1722579061165,-500.0,0.0001452,2]
[333863929,1722579061175,-500.0,0.0001452,2]
[333863930,1722579061184,-500.0,0.0001452,2]
[333863931,1722579061194,-500.0,0.0001452,2]
[333863932,1722579061206,-557.42,0.0001452,2]
[333863933,1722579061216,-8928.74,0.0001452,2]
[333863934,1722579061225,-500.0,0.0001452,2]
[333863935,1722579061234,-500.0,0.0001452,2]
[333863936,1722579061243,-522.01237899,0.0001452,2]
[333863937,1722579061252,-3974.3,0.0001452,2]
[333863938,1722579061262,-677.33,0.0001452,2]
[333863939,1722579061271,-1546.82,0.0001452,2]
[333863940,1722579061280,-555.14187002,0.0001452,2]
[333863941,1722579061290,-467.8822767,0.0001452,2]
[333863942,1722579061300,-500.0,0.0001452,2]
[333863943,1722579061309,-1043.82,0.0001452,2]
[333863944,1722579061318,-500.0,0.0001452,2]
[333863945,1722579061328,-500.0,0.0001452,2]
[333863946,1722579061338,-545.96,0.0001452,2]
[333863947,1722579061347,-1153.47,0.0001452,2]
[333863948,1722579061356,-500.0,0.0001452,2]
[333863949,1722579061365,-749.82,0.0001452,2]
[333863950,1722579061375,-5500.2,0.0001452,2]
[333863951,1722579061384,-500.0,0.0001452,2]
[333863952,1722579061394,-560.79,0.0001452,2]
[333863953,1722579061403,-1545.14,0.0001452,2]
[333863954,1722579061413,-760.37,0.0001452,2]
[333863955,1722579061422,-500.0,0.0001452,2]
[333863956,1722579061431,-500.0,0.0001452,2]
[333863957,1722579061439,-500.0,0.0001452,2]
[333863958,1722579061449,-500.0,0.0001452,2]
[333863959,1722579061458,-500.0,0.0001452,2]
[333863960,1722579061467,-6346.79,0.0001452,2]
[333863961,1722579061477,-919.48,0.0001452,2]
[333863962,1722579061486,-703.72,0.0001452,2]
[333863963,1722579061496,-516.88,0.0001452,2]
[333863964,1722579061505,-500.0,0.0001452,2]
[333863965,1722579061514,-500.0,0.0001452,2]
[333863966,1722579061525,-2490.95,0.0001452,2]
[333863967,1722579061534,-795.32,0.0001452,2]
[333863968,1722579061543,-500.0,0.0001452,2]
[333863969,1722579061555,-500.0,0.0001452,2]
[333863970,1722579061565,-508.0131982,0.0001452,2]
[333863971,1722579061575,-500.0,0.0001452,2]
[333863972,1722579061585,-500.0,0.0001452,2]
[333863973,1722579061594,-500.0,0.0001452,2]
[333863974,1722579061604,-500.0,0.0001452,2]
[333863975,1722579061613,-1047.04,0.0001452,2]
[333863976,1722579061623,-500.0,0.0001452,2]
[333863977,1722579061633,-500.0,0.0001452,2]
[333863978,1722579061642,-624.45636262,0.0001452,2]
[333863979,1722579061652,-688.64,0.0001452,2]
[333863980,1722579061662,-500.0,0.0001452,2]
[333863981,1722579061671,-4027.37,0.0001452,2]
[333863982,1722579061682,-500.0,0.0001452,2]
[333863983,1722579061691,-769.86,0.0001452,2]
[333863984,1722579061704,-500.0,0.0001452,2]
[333863985,1722579061714,-500.0,0.0001452,2]
[333863986,1722579061723,-1034.52,0.0001452,2]
[333863987,1722579061732,-500.0,0.0001452,2]
[333863988,1722579061743,-746.99,0.0001452,2]
[333863989,1722579061752,-500.0,0.0001452,2]
[333863990,1722579061762,-677.81,0.0001452,2]
[333863991,1722579061771,-1121.06,0.0001452,2]
[333863992,1722579061781,-817.67,0.0001452,2]
[333863993,1722579061791,-500.0,0.0001452,2]
[333863994,1722579061801,-746.97,0.0001452,2]
[333863995,1722579061810,-1338.14,0.0001452,2]
[333863996,1722579061820,-1468.19,0.0001452,2]
[333863997,1722579061831,-500.0,0.0001452,2]
[333863998,1722579061841,-174.0,0.0001456,2]
[333863999,1722579061851,-150.112233,0.000146,2]
[333864000,1722579061861,-150.112233,0.000146,2]
[333864001,1722579061870,-154.84196968,0.0001469,2]
[333864002,1722579061880,-473.887496,0.0001469,2]
[333864003,1722579061890,-1091.36515182,0.0001469,2]
[333864004,1722579061899,-527.09552675,0.0001469,2]
[333864005,1722579061909,-816.07415827,0.0001469,2]
[333864006,1722579061918,-261.15018643,0.0001469,2]
[333864007,1722579061928,-194.52699436,0.0001469,2]
[333864008,1722579061937,-170.05525585,0.0001469,2]
[333864009,1722579061946,-154.74467129,0.0001469,2]
[333864010,1722579061956,-337.08857677,0.0001469,2]
[333864011,1722579061966,-100000.0,0.0001469,2]
[333864012,1722579061976,-153.0,0.00014693,2]
[333864013,1722579061985,-150.112233,0.000147,2]
[333864014,1722579061996,-420.0,0.00014767,2]
[333864015,1722579062005,-500.0,0.00014794,2]
[333864016,1722579062015,-500.0,0.00014794,2]
[333864017,1722579062025,-500.0,0.00014794,2]
[333864018,1722579062034,-513.70916622,0.00014794,2]
[333864019,1722579062044,-974.01,0.00014794,2]
[333864020,1722579062053,-500.0,0.00014794,2]
[333864021,1722579062063,-500.0,0.00014794,2]
[333864022,1722579062072,-500.0,0.00014794,2]
[333864023,1722579062081,-500.0,0.00014794,2]
[333864024,1722579062091,-500.0,0.00014794,2]
[333864025,1722579062101,-500.0,0.00014794,2]
[333864026,1722579062110,-641.78,0.00014794,2]
[333864027,1722579062120,-500.0,0.00014794,2]
[333864028,1722579062130,-500.0,0.00014794,2]
[333864029,1722579062140,-723.5,0.00014794,2]
[333864030,1722579062150,-500.0,0.00014794,2]
[333864031,1722579062160,-444.97001602,0.00014794,2]
[333864032,1722579062170,-500.0,0.00014794,2]
[333864033,1722579062180,-1075.74,0.00014794,2]
[333864034,1722579062190,-500.0,0.00014794,2]
[333864035,1722579062200,-947.16,0.00014794,2]
[333864036,1722579062210,-772.41,0.00014794,2]
[333864037,1722579062220,-568.85865555,0.00014794,2]
[333864038,1722579062230,-350.30497684,0.00014794,2]
[333864039,1722579062240,-500.0,0.00014794,2]
[333864040,1722579062250,-500.0,0.00014794,2]
[333864041,1722579062260,-500.0,0.00014794,2]
[333864042,1722579062270,-500.0,0.00014794,2]
[333864043,1722579062281,-902.37,0.00014794,2]
[333864044,1722579062291,-500.0,0.00014794,2]
[333864045,1722579062301,-500.0,0.00014794,2]
[333864046,1722579062311,-545.08496457,0.00014794,2]
[333864047,1722579062320,-735.93,0.00014794,2]
[333864048,1722579062330,-500.0,0.00014794,2]
[333864049,1722579062402,-500.0,0.00014794,2]
[333864050,1722579062417,-765.76,0.00014794,2]
[333864051,1722579062427,-500.0,0.00014794,2]
[333864052,1722579062439,-566.91,0.00014794,2]
[333864053,1722579062450,-500.0,0.00014794,2]
[333864054,1722579062461,-592.23,0.00014794,2]
[333864055,1722579062472,-500.0,0.00014794,2]
[333864056,1722579062483,-503.1,0.00014794,2]
[333864057,1722579062493,-500.0,0.00014794,2]
[333864058,1722579062504,-2064.69,0.00014794,2]
[333864059,1722579062517,-500.0,0.00014794,2]
[333864060,1722579062528,-500.0,0.00014794,2]
[333864061,1722579062539,-978.62,0.00014794,2]
[333864062,1722579062556,-500.0,0.00014794,2]
[333864063,1722579062574,-190.59794222,0.00014794,2]
[333864064,1722579062586,-2504.91,0.00014794,2]
[333864065,1722579062596,-500.0,0.00014794,2]
[333864066,1722579062607,-1083.36,0.00014794,2]
[333864067,1722579062618,-658.96,0.00014794,2]
[333864068,1722579062627,-500.0,0.00014794,2]
[333864069,1722579062637,-500.0,0.00014794,2]
[333864070,1722579062647,-500.0,0.00014794,2]
[333864071,1722579062657,-500.0,0.00014794,2]
[333864072,1722579062668,-737.68,0.00014794,2]
[333864073,1722579062677,-804.68,0.00014794,2]
[333864074,1722579062688,-274.45270061,0.00014794,2]
[333864075,1722579062697,-524.63301159,0.00014794,2]
[333864076,1722579062706,-500.0,0.00014794,2]
[333864077,1722579062716,-823.41,0.00014794,2]
[333864078,1722579062725,-1365.74,0.00014794,2]
[333864079,1722579062735,-500.0,0.00014794,2]
[333864080,1722579062746,-689.75,0.00014794,2]
[333864081,1722579062758,-987.68,0.00014794,2]
[333864082,1722579062769,-500.0,0.00014794,2]
[333864083,1722579062780,-500.0,0.00014794,2]
[333864084,1722579062792,-500.0,0.00014794,2]
[333864085,1722579062804,-550.17,0.00014794,2]
[333864086,1722579062814,-1094.99,0.00014794,2]